Cogmind - Beta 14 X2 @@@ ROGUE MODE // 2024.08.04 @ 00:21:20 Player: f3-rnm Result: Self-destructed Performance ------------- Evolutions (7) 3500 Regions Visited (19) 3800 Robots Destroyed (187) 935 Value Destroyed (7199) 7199 Prototype IDs (58) 1160 Alien Tech Used (0) 0 Bonus (4086) 4086 TOTAL SCORE: 20680 Bonus ------- High Alert Combat Kills 680 Follower Combat Kills 1217 Registered with UFD 300 Met Data Miner 300 Met Warlord at Base 500 MAIN.C Attacked Warlord 500 Warlord Defense Kills 150 Scanned by Researcher 500 Friendly Fire -61 Cogmind --------- Core Integrity 896/1300 Matter 114/300 Energy 129/1000 System Corruption 3% Temperature Hot (220) Movement Walking (120) Location -3/Testing Parts ------- > --- POWER (2) -------- (None) > --- PROPULSION (7) --- Flexi-carbon Leg Flexi-carbon Leg > --- UTILITY (9) ------ Medium Storage Unit Improved Energy Well Advanced Energy Well Machine Analyzer Spectral Analyzer Advanced Terrain Scan Processor > --- WEAPON (3) ------- Light Antimatter Cannon > --- INVENTORY (10) --- Improved Ion Engine Light Antimatter Reactor Light Quantum Reactor Improved Matter Compressor (0) Centrium Light Armor Plating Advanced EM Disruption Field System Mapper Improved Matter Neutralizer Peak State ------------ > --- POWER ------------ Vortex Chain Reactor > --- PROPULSION ------- Antigrav System Cooled Antigrav System Combat Linear Gravjet Combat Linear Gravjet > --- UTILITY ---------- Coolant Network Improved Energy Well Advanced Energy Well Machine Analyzer Spectral Analyzer Long-range Terrain Scanner Advanced Terrain Scan Processor Centrium Light Armor Plating > --- WEAPON ----------- Perforator > --- INVENTORY -------- Advanced EM Disruption Field Improved Potential Cannon [Rating: 147] Favorites ----------- Power Heavy Ion Engine Engine Heavy Ion Engine Power Core Neutrino Core Reactor Vortex Chain Reactor Propulsion Light Treads Treads Light Treads Leg Enhanced Biometal Leg Wheel Overtuned Huge Scrapsphere Hover Unit Backup Propulsion III Flight Unit Improved Flight Unit Utility Huge Storage Unit Device Scrap Suit Storage Huge Storage Unit Processor Advanced Targeting Computer Hackware Hacking Suite Protection Improved Light Armor Plating Weapon Enhanced Autogun Energy Gun Backup Laser III Energy Cannon Advanced Beam Cannon Ballistic Gun Enhanced Autogun Ballistic Cannon Heavy Flak Cannon Launcher Precision Rocket Launcher Special Weapon Plasma Cutter Slashing Weapon Makeshift Axe Special Melee Weapon Dirty Datajack Build | -11 -10 -9 -8 -8 -8 -8 -6 -6 -6 -6 -5 -5 -5 -5 -5 -4 -4 -3 -3 ------- Run | Yrd Mat Mat Mat Sto Rec Scr Fac Low Low Dat Pro Fac Upp Upp War Pro Fac Res Tes Slots Evolved 14 | . . 2 2 . . . 4 . . . . 2 . . . . 2 2 . Power 1 | . . . . . . . . . . . . . . . . . . 1 . Propulsion 5 | . . 1 1 . . . . . . . . . . . . . 2 1 . Utility 7 | . . 1 1 . . . 3 . . . . 2 . . . . . . . Weapon 1 | . . . . . . . 1 . . . . . . . . . . . . Parts Attached 211 | 6 13 21 . 38 2 2 9 . 1 . 2 10 4 15 16 31 9 . 32 Power 17 | 1 2 2 . 2 . . . . . . 1 . 1 1 1 2 . . 4 Engine 9 | 1 2 2 . 2 . . . . . . . . . 1 1 . . . . Core 3 | . . . . . . . . . . . 1 . 1 . . 1 . . . Reactor 5 | . . . . . . . . . . . . . . . . 1 . . 4 Propulsion 43 | 2 7 6 . 8 . 1 1 . . . . 1 . 5 2 6 . . 4 Treads 28 | 2 6 6 . 8 . 1 . . . . . . . 4 . 1 . . . Leg 6 | . . . . . . . . . . . . . . . 2 1 . . 3 Wheel 3 | . . . . . . . 1 . . . . 1 . 1 . . . . . Hover 5 | . . . . . . . . . . . . . . . . 4 . . 1 Flight 1 | . 1 . . . . . . . . . . . . . . . . . . Utility 76 | 1 3 7 . 6 1 1 5 . 1 . . 4 1 3 11 13 7 . 12 Device 28 | . . . . 1 1 . 3 . . . . 1 1 2 5 6 4 . 4 Storage 14 | 1 2 1 . . . . . . . . . . . . 3 1 2 . 4 Processor 12 | . 1 2 . 2 . . . . . . . 2 . . 3 1 1 . . Hackware 3 | . . . . . . 1 1 . 1 . . . . . . . . . . Protection 19 | . . 4 . 3 . . 1 . . . . 1 . 1 . 5 . . 4 Artifact . | . . . . . . . . . . . . . . . . . . . . Weapon 75 | 2 1 6 . 22 1 . 3 . . . 1 5 2 6 2 10 2 . 12 Energy Gun 8 | . . 1 . 3 . . . . . . 1 2 1 . . . . . . Energy Cannon 13 | . . . . 1 1 . . . . . . . . . 1 3 . . 7 Ballistic Gun 29 | 2 1 5 . 12 . . 2 . . . . 2 . 2 . 3 . . . Ballistic Cannon 8 | . . . . . . . 1 . . . . . . . . 1 2 . 4 Launcher 8 | . . . . 2 . . . . . . . 1 1 1 1 2 . . . Special Weapon 2 | . . . . 2 . . . . . . . . . . . . . . . Impact Weapon . | . . . . . . . . . . . . . . . . . . . . Slashing Weapon 4 | . . . . 2 . . . . . . . . . . . 1 . . 1 Piercing Weapon . | . . . . . . . . . . . . . . . . . . . . Special Melee Weapon 3 | . . . . . . . . . . . . . . 3 . . . . . Unidentified Prototypes 36 | . 1 1 . 8 . . . . . . . . . . 6 9 2 . 9 Corrupted Parts 4 | . . . . . . . . . . . . . . 1 . 3 . . . System Corruption 22 | . . . . . . . . . . . . . . 5 . 17 . . . Parts Lost 64 | . 2 4 . 9 1 . . . . . 1 4 8 5 . 12 . 2 16 Power 8 | . 1 . . 1 . . . . . . . . 1 . . 2 . . 3 Propulsion 15 | . 1 . . 3 . . . . . . . 2 . 1 . 2 . 1 5 Utility 20 | . . 1 . 2 1 . . . . . . . 4 1 . 5 . 1 5 Weapon 21 | . . 3 . 3 . . . . . . 1 2 3 3 . 3 . . 3 Highest Loss Streak 7 | . 1 3 . 3 1 . . . . . 1 2 5 3 . 7 . 2 6 To Critical Strikes 1 | . . . . . . . . . . . . . . . . . . . 1 Average Slot Usage (%) 86 | . 95 98 81 96 96 99 85 86 86 86 86 83 71 54 54 65 78 74 62 Engine 7 | . 13 10 9 9 9 9 6 6 6 6 . . . 4 3 2 . . . Treads 22 | . 27 32 27 34 36 36 13 13 13 13 13 6 . 17 . . . . . Wheel 1 | . . . . . . . 5 6 6 6 6 5 11 . . . . . . Hover 1 | . . . . . . . . . . . . . . . 9 6 21 18 12 Device 7 | . . . . 7 6 7 12 13 13 13 13 11 13 9 12 6 15 14 9 Storage 8 | . 14 11 9 9 9 9 6 6 6 6 6 5 5 4 2 10 2 . 6 Processor 9 | . 10 10 9 7 9 9 6 6 6 6 6 16 8 2 8 15 10 14 14 Hackware 1 | . . . . . . 1 6 6 6 6 6 5 5 4 . . . . . Protection 6 | . . 10 9 9 9 9 6 6 6 6 6 5 4 1 3 5 10 8 4 Energy Gun 1 | . . . . 1 . . . . . . 3 9 7 . 4 . . . . Energy Cannon 2 | . . . . . 9 9 2 . . . . . . . . 1 . . 2 Ballistic Gun 11 | . 28 21 18 13 9 9 10 13 13 13 13 5 5 3 . 2 . . . Ballistic Cannon 1 | . . . . . . . 5 6 6 6 2 . . . . 1 7 9 2 Naked Turns 18 | . . . . . . . . . . . . . . 18 . . . . . Heaviest Build 134 | 10 47 98 94 99 99 99 112 112 112 112 118 121 121 105 117 134 47 42 87 Greatest Support 89 | 40 40 60 60 89 89 89 86 20 20 20 20 40 40 89 60 60 53 53 65 Greatest Overweight (x) 7 | . 1 2 1 1 1 1 5 5 5 5 5 6 4 1 2 7 . . 6 Average Overweight (x) 1 | . . . 1 1 1 1 4 5 5 5 5 4 2 . . . . . . Largest Inventory Capacity 25 | 8 20 25 25 25 25 25 25 25 25 25 25 25 25 25 25 25 5 5 10 Average Capacity 21 | 6 15 22 25 25 25 25 25 25 25 25 25 25 25 21 13 22 5 5 6 Most Carried 25 | 2 20 25 25 25 25 25 25 25 25 25 25 25 25 24 25 25 5 5 10 Average Carried 20 | . 13 21 24 24 25 24 24 24 24 25 24 24 22 17 9 20 4 5 5 Final Capacity 25 | 8 20 25 25 25 25 25 25 25 25 25 25 25 25 5 25 5 5 5 10 Final Carried 25 | 2 20 25 25 25 25 25 25 25 25 25 25 25 23 5 25 5 5 5 8 Class Distribution -------------------- 36% | Mutant 24% | Commander-Mutant 12% | Commander-Scrapper 7% | Scavenger-Mutant 4% | Derelict-Mutant 4% | Commander-Gunner Dominant Class ---------------- Mutant | -10/Materials Mutant | -9/Materials Mutant | -8/Materials Mutant | -8/Storage Commander-Mutant | -8/Recycling Commander-Mutant | -8/Scraptown Commander-Gunner | -6/Factory Commander-Scrapper | -6/Lower Caves Commander-Scrapper | -6/Lower Caves Commander-Scrapper | -6/Data Miner Commander-Scrapper | -5/Proximity Caves Commander-Gunner | -5/Factory Scrapper | -5/Upper Caves Mutant | -5/Upper Caves Derelict-Mutant | -5/Warlord Mutant | -4/Proximity Caves Scavenger-Mutant | -4/Factory Scavenger-Scout | -3/Research Scavenger-Assassin | -3/Testing Resources | -11 -10 -9 -8 -8 -8 -8 -6 -6 -6 -6 -5 -5 -5 -5 -5 -4 -4 -3 -3 ----------- Run | Yrd Mat Mat Mat Sto Rec Scr Fac Low Low Dat Pro Fac Upp Upp War Pro Fac Res Tes Matter Collected 6713 | 260 357 601 . 1007 111 16 550 641 96 . 268 243 88 171 236 473 208 . 1387 Remotely 820 | . . . . . . . . . . . . . . . . . . . 820 Salvage Created 7529 | . 418 672 . 1331 458 . 498 342 51 . 471 573 138 124 . 387 167 . 1899 Parts 352 | . 31 44 . 65 21 . 18 11 4 . 23 25 4 13 . 8 16 . 69 Haulers Intercepted 7 | . 1 2 . 1 . . 1 . . . . . . . . 1 1 . . Recyclers Shooed 12 | . 1 . . 5 1 . . . . . . 2 . . . . 1 . 2 Parts Field Recycled . | . . . . . . . . . . . . . . . . . . . . Retrieved Matter . | . . . . . . . . . . . . . . . . . . . . Parts Self-Destructed 100 | . . . . . . . . 36 7 . 35 . 5 10 . 7 . . . Prevented 1 | . . . . . . . . . . . . . . 1 . . . . . Kills | -11 -10 -9 -8 -8 -8 -8 -6 -6 -6 -6 -5 -5 -5 -5 -5 -4 -4 -3 -3 ------- Run | Yrd Mat Mat Mat Sto Rec Scr Fac Low Low Dat Pro Fac Upp Upp War Pro Fac Res Tes Combat Hostiles Destroyed 140 | . 12 15 . 24 2 . 9 6 1 . 9 10 4 8 1 6 8 . 25 Melee 3 | . . . . . . . . . . . . . . . . . 2 . 1 Guns 72 | . 12 15 . 24 . . 4 1 . . 6 5 2 2 . 1 . . . Cannons 38 | . . . . . 2 . 4 5 1 . 3 . . . . 4 6 . 13 AOE 24 | . . . . . . . 1 . . . . 5 2 5 1 1 . . 9 Classes Destroyed 20 | . 4 2 . 5 . . 1 . . . 1 1 . . 1 . 1 . 4 Worker 11 | . . . . 4 . . 2 . . . . . . . . . 2 . 3 Builder 7 | . . . . 2 . . 2 . . . . 1 . . . . . . 2 Tunneler 1 | . . . . . . . . . . . . . . . . . 1 . . Hauler 7 | . 1 2 . 1 . . 1 . . . . . . . . 1 1 . . Recycler 13 | . . 1 . 2 5 . . . . . . 1 . . . . . . 4 Mechanic 1 | . . . . . . . . . . . . . . . . . . . 1 Operator 2 | . . . . . . . . . . . . 1 . . . . . . 1 Watcher 4 | . 1 1 . 1 . . . . . . . . . . . . . . 1 Swarmer 36 | . 6 3 . . . . . . . . 3 2 2 8 . . 8 . 4 Saboteur 1 | . . . . . . . . . . . . . . . . . . . 1 Grunt 59 | . 6 6 . 14 . . 7 5 1 . 1 3 2 . . 5 . . 9 Brawler 7 | . . . . 2 . . . 1 . . 2 . . . . . . . 2 Duelist 4 | . . . . 1 . . . . . . 2 . . . . . . . 1 Protector 2 | . . . . . . . . . . . 1 1 . . . . . . . Researcher 1 | . . . . . . . . . . . . . . . . . . . 1 Sentry 18 | . . 6 . 6 2 . 1 . . . . 1 . . . . . . 2 Hunter 5 | . . . . 1 . . . . . . . 2 . . . . . . 2 Programmer 4 | . . . . . . . 1 . . . . 1 . . . . . . 2 Behemoth 2 | . . . . . . . . . . . . . . . 1 1 . . . Striker 2 | . . . . . . . . . . . . . . . . . . . 2 Best Kill Streak 8 | . 4 3 . 5 3 . 6 3 1 . 3 8 4 3 1 2 8 . 7 Combat Bots Only 8 | . 4 3 . 5 1 . 4 3 1 . 3 5 4 3 1 2 8 . 5 Max Kills in Single Turn 3 | . 2 2 . 2 1 . 2 1 1 . 1 1 1 3 1 1 2 . 2 Gunslinging 1 | . 1 1 . 1 . . . . . . . . . . . . . . . Exploded 3 | . . . . . . . 1 . . . . 1 1 3 1 1 . . 2 Melee 1 | . . . . . . . . . . . . . . . . . 1 . 1 Uniques/NPCs Destroyed . | . . . . . . . . . . . . . . . . . . . . Combat | -11 -10 -9 -8 -8 -8 -8 -6 -6 -6 -6 -5 -5 -5 -5 -5 -4 -4 -3 -3 -------- Run | Yrd Mat Mat Mat Sto Rec Scr Fac Low Low Dat Pro Fac Upp Upp War Pro Fac Res Tes Hostile Shots Fired 1126 | . 84 73 . 121 12 . 60 10 1 . 42 81 65 134 3 182 60 16 182 Missed 358 | . 27 19 . 32 2 . 24 4 . . 10 23 25 46 1 58 31 5 51 Damage Taken 14434 | . 612 774 . 1535 144 . 541 121 57 . 726 1169 601 1365 99 2517 387 284 3502 Core 1811 | . 88 92 . 113 15 . . . . . 62 144 44 415 34 357 43 17 387 Absorbed by Shields . | . . . . . . . . . . . . . . . . . . . . Redirected to Shielding 194 | . . . . . . . . . . . . . . . . 81 41 1 71 Regen/Repaired (Parts) 62 | . . . . . . . . . . . 40 20 2 . . . . . . Core Remaining (%) 72 | 100 64 77 . . . 76 . . . . 92 . . . . . 96 . . Volleys Fired 450 | . 50 49 . 82 17 . 32 15 11 . 22 24 7 19 5 49 16 . 52 Largest 3 | . 2 2 . 2 2 . 3 3 3 . 3 3 2 1 1 2 2 . 1 Hottest 200 | . 40 50 . 86 93 . 146 110 110 . 137 189 108 43 50 128 120 . 200 Shots Fired 833 | . 100 95 . 165 34 . 90 39 20 . 66 50 12 18 5 55 32 . 52 Gun 602 | . 100 95 . 164 17 . 49 27 18 . 55 41 10 16 . 10 . . . Cannon 209 | . . . . . 17 . 41 12 2 . 11 . . . 1 41 32 . 52 Launcher 21 | . . . . . . . . . . . . 9 2 2 4 4 . . . Special 1 | . . . . 1 . . . . . . . . . . . . . . . Kinetic 682 | . 100 95 . 158 17 . 78 39 20 . 55 19 5 16 . 22 32 . 26 Thermal 121 | . . . . 7 17 . 12 . . . 11 22 5 . . 21 . . 26 Explosive 13 | . . . . . . . . . . . . 9 2 2 . . . . . Electromagnetic . | . . . . . . . . . . . . . . . . . . . . Entropic 17 | . . . . . . . . . . . . . . . 5 12 . . . Robot Hit Streak 15 | . 12 11 . 15 13 . 11 7 4 . 12 15 7 9 4 15 4 . 15 Robot Miss Streak 20 | . 4 4 . 4 1 . 8 5 7 . 5 3 1 4 . 6 3 . 20 Penetration Max 2 | . . . . . . . . 1 . . 1 1 1 . . 1 . . 2 Secondary Targets 9 | . 3 1 . 2 . . . . . . 1 2 . . . . . . . Max Gunslinging Chain 1 | . 1 1 . 1 . . . . . . 1 1 . . . . . . . Shots Hit Robots 606 | . 62 73 . 134 24 . 60 27 8 . 50 33 9 11 3 38 22 2 50 Core Hits 451 | . 30 36 . 78 9 . 46 21 4 . 43 41 8 10 3 15 13 . 94 Critical Kills 16 | . . . . . . . . . . . . 1 1 . . . . . 14 Critical Parts Destroyed 27 | . . . . 1 . . . . . . 1 1 1 . . . . . 23 Critical Strikes 55 | . . . . 1 . . . . . . 1 4 3 . . 1 2 1 42 Burn 2 | . . . . . . . . . . . . 2 . . . . . . . Meltdown 2 | . . . . . . . . . . . . . . . . . . . 2 Destroy 46 | . . . . 1 . . . . . . 1 2 3 . . . . . 39 Blast 2 | . . . . . . . . . . . . . . . . . 2 . . Sever 2 | . . . . . . . . . . . . . . . . . . 1 1 Sunder 1 | . . . . . . . . . . . . . . . . 1 . . . Melee Attacks 48 | . . . . 8 . . . . . . . . . 2 . . 14 4 20 Impact . | . . . . . . . . . . . . . . . . . . . . Slashing 46 | . . . . 8 . . . . . . . . . . . . 14 4 20 Piercing 2 | . . . . . . . . . . . . . . 2 . . . . . Sneak Attacks 7 | . . . . . . . . . . . . . . . . . 1 . 6 Combat Hostiles . | . . . . . . . . . . . . . . . . . . . . Follow-up Attacks . | . . . . . . . . . . . . . . . . . . . . Damage Inflicted 23424 | . 505 1335 . 2908 479 . 1718 667 145 . 1218 2213 377 633 1282 2253 923 90 6678 Guns 8222 | . 502 1335 . 2898 202 . 615 442 131 . 1001 690 121 97 . 188 . . . Cannons 6608 | . . . . . 270 . 775 225 14 . 217 . . . . 1591 669 . 2847 Explosions 7533 | . . . . . . . 328 . . . . 1497 256 497 1282 474 . . 3199 Melee 976 | . . . . . . . . . . . . . . 4 . . 254 86 632 Ramming 75 | . 3 . . . 7 . . . . . . 26 . 35 . . . 4 . Kinetic 10419 | . 502 1335 . 2838 202 . 1227 667 145 . 970 315 32 97 . 998 669 . 422 Thermal 7397 | . . . . 70 270 . 163 . . . 248 375 89 . . 558 . . 5624 Explosive 2578 | . . . . . . . 328 . . . . 1497 256 497 . . . . . Electromagnetic . | . . . . . . . . . . . . . . . . . . . . Impact . | . . . . . . . . . . . . . . . . . . . . Slashing 972 | . . . . . . . . . . . . . . . . . 254 86 632 Piercing 4 | . . . . . . . . . . . . . . 4 . . . . . Entropic 1979 | . . . . . . . . . . . . . . . 1282 697 . . . Highest Corruption 17 | . . . . 2 2 . . . . . . 1 1 6 6 17 1 . 3 Average Corruption 3 | . . . . 1 2 . . . . . . 1 1 3 6 12 1 . 2 Corruption Purged . | . . . . . . . . . . . . . . . . . . . . Corruption Blocked . | . . . . . . . . . . . . . . . . . . . . Effects 96 | . . . . 32 8 . . . . . . 2 5 8 2 28 1 . 10 Message Errors 16 | . . . . 2 1 . . . . . . 1 2 3 1 5 . . 1 Matter Fused 23 | . . . . 7 2 . . . . . . 1 2 1 . 7 . . 3 Heat Flow Errors 17 | . . . . 9 1 . . . . . . . . 2 1 3 . . 1 Energy Discharges 13 | . . . . 4 1 . . . . . . . 1 1 . 4 1 . 1 Parts Rejected 3 | . . . . 1 . . . . . . . . . . . 2 . . . Parts Fused 1 | . . . . 1 . . . . . . . . . . . . . . . Data Loss (minor) 6 | . . . . 2 1 . . . . . . . . . . 3 . . . Data Loss (major) 6 | . . . . 2 2 . . . . . . . . . . 1 . . 1 Misfires 3 | . . . . 1 . . . . . . . . . . . 1 . . 1 Alerts 5 | . . . . 3 . . . . . . . . . . . 1 . . 1 Weapon Failures 3 | . . . . . . . . . . . . . . 1 . 1 . . 1 Overload Shots . | . . . . . . . . . . . . . . . . . . . . Overflow Damage 1233 | . . . . . 11 . . . . . . 14 . 2 . 55 22 . 1129 Projectiles 601 | . . . . . 11 . . . . . . . . . . 55 22 . 513 Explosions 493 | . . . . . . . . . . . . 14 . . . . . . 479 Melee 139 | . . . . . . . . . . . . . . 2 . . . . 137 Knockbacks 59 | . . . . . . . 10 3 . . 5 . . . . . 5 . 36 Impact . | . . . . . . . . . . . . . . . . . . . . Kinetic 55 | . . . . . . . 7 3 . . 5 . . . . . 4 . 36 Secondary 4 | . . . . . . . 3 . . . . . . . . . 1 . . Self-Inflicted Damage 701 | . . . . . . . 88 . . . . 13 96 71 . . . 2 431 Shots 12 | . . . . . . . 1 . . . . . 2 1 . . . . 8 Rammed 7 | . 1 . . . 1 . . . . . . 1 . 3 . . . 1 . Targets Rammed 7 | . 1 . . . 1 . . . . . . 1 . 3 . . . 1 . Kicked . | . . . . . . . . . . . . . . . . . . . . Crushed . | . . . . . . . . . . . . . . . . . . . . Highest Temperature 396 | . 40 25 . 229 266 . 236 70 37 . 204 146 . 177 234 164 200 . 396 Average Temperature 71 | . 15 6 . 98 82 . 52 25 26 . 76 52 . 95 134 75 93 . 141 Received Heat Transfer 2953 | . 264 285 . 639 45 . 264 51 15 . 231 250 90 . . 459 9 42 309 Effects 1 | . . . . . 1 . . . . . . . . . . . . . . Energy Bleed 1 | . . . . . 1 . . . . . . . . . . . . . . Siege Activations . | . . . . . . . . . . . . . . . . . . . . Robots Corrupted 1 | . . . . . . . . . . . . . . 1 . . . . . Combat Hostiles 1 | . . . . . . . . . . . . . . 1 . . . . . Parts Fried 1 | . . . . . . . . . . . . . . 1 . . . . . Impact Corruptions 1 | . . . . . . . . . . . . . . 1 . . . . . Robots Melted 2 | . . . . . . . . . . . . . . . . . . . 2 Combat Hostiles 2 | . . . . . . . . . . . . . . . . . . . 2 Parts Melted 6 | . . . . . . . 2 . . . . . . . . . . . 4 Heat Transferred 6267 | . . . . 148 481 . 296 . . . 538 844 200 . . . . . 3760 Parts Sabotaged . | . . . . . . . . . . . . . . . . . . . . Parts Stolen . | . . . . . . . . . . . . . . . . . . . . Parts Stripped . | . . . . . . . . . . . . . . . . . . . . Power Chain Reactions . | . . . . . . . . . . . . . . . . . . . . Alert | -11 -10 -9 -8 -8 -8 -8 -6 -6 -6 -6 -5 -5 -5 -5 -5 -4 -4 -3 -3 ------- Run | Yrd Mat Mat Mat Sto Rec Scr Fac Low Low Dat Pro Fac Upp Upp War Pro Fac Res Tes Peak Influence 1072 | . 196 252 74 522 333 . 342 . . . . 801 . . . . 452 296 1072 Initial 237 | . . 12 74 31 189 . . . . . . 99 . . . . . 237 166 Average 222 | . 55 109 74 249 240 . 184 . . . . 511 . . . . 165 260 558 Maximum Alert Level 3 | . . 1 . 2 1 . 1 . . . . 3 . . . . 2 1 3 Low Security (%) 56 | 100 100 93 100 36 40 . 54 . . . . 11 . . . . 65 . 10 Level 1 28 | . . 6 . 48 59 . 45 . . . . 21 . . . . 15 100 24 Level 2 10 | . . . . 15 . . . . . . . 30 . . . . 18 . 39 Level 3 4 | . . . . . . . . . . . . 36 . . . . . . 25 Level 4 . | . . . . . . . . . . . . . . . . . . . . Level 5 . | . . . . . . . . . . . . . . . . . . . . High Security . | . . . . . . . . . . . . . . . . . . . . Max Security . | . . . . . . . . . . . . . . . . . . . . Squads Dispatched 33 | . 3 . . 7 . . 4 . . . 1 6 . . . . 6 1 5 Investigation 9 | . 1 . . 2 . . 1 . . . . 3 . . . . 2 . . Extermination 3 | . . . . . . . 1 . . . . . . . . . 1 . 1 Reinforcement 12 | . 2 . . 1 . . 2 . . . . 1 . . . . 3 1 2 Assault 5 | . . . . . . . . . . . 1 2 . . . . . . 2 Garrison 4 | . . . . 4 . . . . . . . . . . . . . . . Intercept . | . . . . . . . . . . . . . . . . . . . . Searches Triggered . | . . . . . . . . . . . . . . . . . . . . Construction Impeded 4 | . . . . 1 . . . . . . . 1 . . . . 1 . 1 Haulers Reinforced 1 | . . . . . . . . . . . . . . . . . 1 . . Active Scanning Responses . | . . . . . . . . . . . . . . . . . . . . Cargo Convoy Interrupts . | . . . . . . . . . . . . . . . . . . . . Stealth | -11 -10 -9 -8 -8 -8 -8 -6 -6 -6 -6 -5 -5 -5 -5 -5 -4 -4 -3 -3 --------- Run | Yrd Mat Mat Mat Sto Rec Scr Fac Low Low Dat Pro Fac Upp Upp War Pro Fac Res Tes Distress Signals 14 | . 3 2 . 1 . . . . . . . 2 . . 2 . . 1 3 Communications Jammed . | . . . . . . . . . . . . . . . . . . . . Distress Signals . | . . . . . . . . . . . . . . . . . . . . Times Spotted 288 | . 25 21 . 29 3 . 14 10 4 . 16 39 6 12 30 7 17 11 44 Peak Tracking Total 20 | . 5 3 . 4 1 . 5 3 3 . 5 11 6 4 20 5 6 8 8 Tactical Retreats 15 | . 1 1 . 2 . . . . . . 1 . 1 2 . . 4 1 2 Traps | -11 -10 -9 -8 -8 -8 -8 -6 -6 -6 -6 -5 -5 -5 -5 -5 -4 -4 -3 -3 ------- Run | Yrd Mat Mat Mat Sto Rec Scr Fac Low Low Dat Pro Fac Upp Upp War Pro Fac Res Tes Traps Triggered 14 | . 4 4 . 5 . . . . . . . . . . . . 1 . . Indirectly . | . . . . . . . . . . . . . . . . . . . . Trap Hack Attempts . | . . . . . . . . . . . . . . . . . . . . Triggered . | . . . . . . . . . . . . . . . . . . . . Disarmed . | . . . . . . . . . . . . . . . . . . . . Reprogrammed . | . . . . . . . . . . . . . . . . . . . . Reused . | . . . . . . . . . . . . . . . . . . . . Traps Extracted . | . . . . . . . . . . . . . . . . . . . . Installed . | . . . . . . . . . . . . . . . . . . . . Triggered 14 | . . . . . . . . . . . . . . . 14 . . . . Machines | -11 -10 -9 -8 -8 -8 -8 -6 -6 -6 -6 -5 -5 -5 -5 -5 -4 -4 -3 -3 ---------- Run | Yrd Mat Mat Mat Sto Rec Scr Fac Low Low Dat Pro Fac Upp Upp War Pro Fac Res Tes Machines Disabled 26 | . . 2 . 6 . . 4 . 1 . 1 3 . . 1 . 1 . 7 Max in Single Turn 1 | . . 1 . 1 . . 1 . 1 . 1 . . . 1 . . . 1 Machines Repaired . | . . . . . . . . . . . . . . . . . . . . Machines Dismantled 2 | . . . . 2 . . . . . . . . . . . . . . . Machines Sabotaged . | . . . . . . . . . . . . . . . . . . . . Overloaded Fab Kills . | . . . . . . . . . . . . . . . . . . . . Hacking | -11 -10 -9 -8 -8 -8 -8 -6 -6 -6 -6 -5 -5 -5 -5 -5 -4 -4 -3 -3 --------- Run | Yrd Mat Mat Mat Sto Rec Scr Fac Low Low Dat Pro Fac Upp Upp War Pro Fac Res Tes Machines Accessed 50 | . 5 5 . 13 4 3 4 . . 3 . 5 . 2 1 . 2 1 2 Terminals 33 | . 5 5 . 12 2 . 3 . . . . 2 . . . . 2 . 2 Fabricators 2 | . . . . . . . . . . . . 1 . . . . . 1 . Repair Stations . | . . . . . . . . . . . . . . . . . . . . Recycling Units 5 | . . . . . 2 . 1 . . . . 2 . . . . . . . Scanalyzers . | . . . . . . . . . . . . . . . . . . . . Garrison Access 1 | . . . . 1 . . . . . . . . . . . . . . . Total Hacks 97 | . 7 7 . 21 6 5 8 . . 21 . 12 . 2 1 . 4 1 2 Successful 67 | . 4 5 . 13 4 5 5 . . 21 . 6 . 2 1 . . . 1 Failed 30 | . 3 2 . 8 2 . 3 . . . . 6 . . . . 4 1 1 Catastrophic 10 | . 1 . . 2 . . 1 . . . . 1 . . . . 4 1 . Database Lockouts . | . . . . . . . . . . . . . . . . . . . . Manual 49 | . 7 7 . 13 9 . 8 . . . . 5 . . . . . . . Terminals 52 | . 7 7 . 19 3 . 6 . . . . 4 . . . . 4 . 2 Fabricators 6 | . . . . . . . . . . . . 5 . . . . . 1 . Repair Stations . | . . . . . . . . . . . . . . . . . . . . Recycling Units 8 | . . . . . 3 . 2 . . . . 3 . . . . . . . Scanalyzers . | . . . . . . . . . . . . . . . . . . . . Garrison Access 2 | . . . . 2 . . . . . . . . . . . . . . . Terminal Hacks 39 | . . . . 6 . 5 1 . . 21 . 2 . 2 1 . . . 1 Record 10 | . . . . . . 4 . . . 6 . . . . . . . . . Part Schematic 12 | . . . . . . . 1 . . 11 . . . . . . . . . Robot Schematic 4 | . . . . . . . . . . 4 . . . . . . . . . Prototype ID Bank 1 | . . . . . . . . . . . . . . . . . . . 1 Open Door 8 | . . . . 5 . . . . . . . . . 2 1 . . . . Branch Access Points 1 | . . . . . . . . . . . . 1 . . . . . . . Alert Level 1 | . . . . 1 . . . . . . . . . . . . . . . Maintenance Status 1 | . . . . . . . . . . . . 1 . . . . . . . Derelict Proto ID Bank 1 | . . . . . . 1 . . . . . . . . . . . . . Fabricator Hacks 2 | . . . . . . . . . . . . 2 . . . . . . . Load Schematic 1 | . . . . . . . . . . . . 1 . . . . . . . Build 1 | . . . . . . . . . . . . 1 . . . . . . . Repair Station Hacks . | . . . . . . . . . . . . . . . . . . . . Recycling Unit Hacks . | . . . . . . . . . . . . . . . . . . . . Scanalyzer . | . . . . . . . . . . . . . . . . . . . . Garrison Access Hacks . | . . . . . . . . . . . . . . . . . . . . Unauthorized Hacks 26 | . 4 5 . 7 4 . 4 . . . . 2 . . . . . . . Terminals 21 | . 4 5 . 7 2 . 3 . . . . . . . . . . . . Botnet 4 | . . . . 1 . . 3 . . . . . . . . . . . . Skim 17 | . 4 5 . 6 2 . . . . . . . . . . . . . . Fabricators . | . . . . . . . . . . . . . . . . . . . . Repair Stations 3 | . . . . . . . 1 . . . . 2 . . . . . . . Recycling Units 2 | . . . . . 2 . . . . . . . . . . . . . . Tunnel 2 | . . . . . 2 . . . . . . . . . . . . . . Scrapoids 3 | . . . . . . . 1 . . . . 2 . . . . . . . Scanalyzers . | . . . . . . . . . . . . . . . . . . . . Garrison Access . | . . . . . . . . . . . . . . . . . . . . Data Cores Recovered 2 | . . . . . . . . . . . . 1 . . . . . . 1 Used 1 | . . . . . . . . . . . . 1 . . . . . . . Hacking Detections 24 | . 2 1 . 9 3 . 3 . . . . 2 . . . . 2 . 2 Full Trace Events 4 | . . . . 1 . . . . . . . 1 . . . . 2 . . Feedback Events 1 | . . . . . . . . . . . . . . . . . 1 . . Corruption 1 | . . . . . . . . . . . . . . . . . 1 . . Feedback Blocked . | . . . . . . . . . . . . . . . . . . . . Robot Schematics Acquired 4 | . . . . . . . . . . 4 . . . . . . . . . Robots Built . | . . . . . . . . . . . . . . . . . . . . Authchips . | . . . . . . . . . . . . . . . . . . . . Time . | . . . . . . . . . . . . . . . . . . . . Total Robot Build Rating . | . . . . . . . . . . . . . . . . . . . . Part Schematics Acquired 12 | . . . . . . . 1 . . 11 . . . . . . . . . Parts Built 1 | . . . . . . . . . . . . 1 . . . . . . . Authchips . | . . . . . . . . . . . . . . . . . . . . Time 169 | . . . . . . . . . . . . 169 . . . . . . . Total Part Build Rating 6 | . . . . . . . . . . . . 6 . . . . . . . Parts Repaired . | . . . . . . . . . . . . . . . . . . . . Time . | . . . . . . . . . . . . . . . . . . . . Parts Recycled . | . . . . . . . . . . . . . . . . . . . . Recycled Matter . | . . . . . . . . . . . . . . . . . . . . Retrieved Matter . | . . . . . . . . . . . . . . . . . . . . Retrieved Components . | . . . . . . . . . . . . . . . . . . . . Parts Scanalyzed . | . . . . . . . . . . . . . . . . . . . . Part Schematics Acquired . | . . . . . . . . . . . . . . . . . . . . Parts Damaged . | . . . . . . . . . . . . . . . . . . . . Bothacking | -11 -10 -9 -8 -8 -8 -8 -6 -6 -6 -6 -5 -5 -5 -5 -5 -4 -4 -3 -3 ------------ Run | Yrd Mat Mat Mat Sto Rec Scr Fac Low Low Dat Pro Fac Upp Upp War Pro Fac Res Tes Used RIF Installer . | . . . . . . . . . . . . . . . . . . . . Robots Hacked . | . . . . . . . . . . . . . . . . . . . . Non-combat . | . . . . . . . . . . . . . . . . . . . . Combat . | . . . . . . . . . . . . . . . . . . . . Robot Hacks Applied . | . . . . . . . . . . . . . . . . . . . . Relay Couplers Released . | . . . . . . . . . . . . . . . . . . . . Fabnet Peak Effective % . | . . . . . . . . . . . . . . . . . . . . Robots Rewired 4 | . . . . . . . . 2 . . 1 . . . . . 1 . . Allies Hacked 1 | . . . . . . . . . . . . 1 . . . . . . . Hacks Repelled . | . . . . . . . . . . . . . . . . . . . . Allies | -11 -10 -9 -8 -8 -8 -8 -6 -6 -6 -6 -5 -5 -5 -5 -5 -4 -4 -3 -3 -------- Run | Yrd Mat Mat Mat Sto Rec Scr Fac Low Low Dat Pro Fac Upp Upp War Pro Fac Res Tes Total Allies 29 | . . . . 10 . . 5 2 . . 1 10 . . . . 1 . . Largest Group 12 | . . . . 10 9 9 12 6 6 5 5 8 . . . . 1 . . Highest-Rated Group 332 | . . . . 173 157 157 265 173 173 142 142 332 . . . . 49 . . Highest-Rated Ally 50 | . . . . 29 29 29 29 32 32 32 32 50 . . . . 49 . . Total Orders 3 | . . . . . . . 1 . 2 . . . . . . . . . . STAY 2 | . . . . . . . 1 . 1 . . . . . . . . . . FOLLOW 1 | . . . . . . . . . 1 . . . . . . . . . . Ally Attacks 301 | . . . . 17 1 . 25 46 28 . 44 133 . . . . 7 . . Total Damage 6163 | . . . . 180 18 . 246 780 524 . 988 2903 . . . . 524 . . Kills 46 | . . . . 5 1 . 1 4 3 . 6 23 . . . . 3 . . Allies Corrupted 1 | . . . . . . . . . . . 1 . . . . . . . . Allies Melted 1 | . . . . . . . . . . . . . . . 1 . . . . Intel | -11 -10 -9 -8 -8 -8 -8 -6 -6 -6 -6 -5 -5 -5 -5 -5 -4 -4 -3 -3 ------- Run | Yrd Mat Mat Mat Sto Rec Scr Fac Low Low Dat Pro Fac Upp Upp War Pro Fac Res Tes Robot Analysis Total . | . . . . . . . . . . . . . . . . . . . . Derelict Logs Recovered 7 | . . . . . . . . 2 1 . 1 . 1 . . 2 . . . Drone Launches . | . . . . . . . . . . . . . . . . . . . . Drone Recoveries . | . . . . . . . . . . . . . . . . . . . . Exploration | -11 -10 -9 -8 -8 -8 -8 -6 -6 -6 -6 -5 -5 -5 -5 -5 -4 -4 -3 -3 ------------- Run | Yrd Mat Mat Mat Sto Rec Scr Fac Low Low Dat Pro Fac Upp Upp War Pro Fac Res Tes Turns Passed 17101 | 97 1591 1473 122 2810 602 3064 717 940 565 105 489 651 294 465 1189 855 274 88 710 Spaces Moved 9112 | 56 718 646 51 981 228 1251 474 708 439 81 351 401 269 247 883 431 354 127 416 Core 548 | 2 . . . . . . . . . . . . . 94 452 . . . . Treads 4088 | 54 718 646 51 981 228 1251 17 . . . . . . 139 . 3 . . . Legs 407 | . . . . . . . . . . . . . . . 165 223 . . 19 Wheels 2720 | . . . . . . . 457 708 439 81 351 401 269 14 . . . . . Hover 1349 | . . . . . . . . . . . . . . . 266 205 354 127 397 Flight . | . . . . . . . . . . . . . . . . . . . . Fastest Speed 41 | 50 160 160 240 240 242 242 120 120 120 120 120 90 90 50 50 49 49 49 41 Average Speed 160 | 156 196 192 240 241 242 243 124 120 120 120 120 114 95 159 103 147 49 49 104 Slowest Speed 440 | 160 240 320 240 243 242 245 245 120 120 120 120 130 110 243 236 440 49 49 350 Overloaded Moves 228 | . . . . . . . . . . . . . . . . . . . 228 Propulsion Burnouts . | . . . . . . . . . . . . . . . . . . . . Robots Hopped . | . . . . . . . . . . . . . . . . . . . . Cave-ins Triggered . | . . . . . . . . . . . . . . . . . . . . Exploration Rate (%) 46 | 5 93 62 7 80 56 60 15 71 65 69 45 17 52 36 91 55 12 5 39 Regions Visited 19 Branch Regions 12 Pre-discovered Areas 6 | . . 2 . 1 2 . . . . 1 . . . . . . . . . Known Exits Taken 8 | . . 1 1 1 . 1 1 1 . . . 1 1 . . . . . . Unknown Exits Taken 11 | 1 1 . . . 1 . . . 1 1 1 . . 1 1 1 1 1 . Scrap Searched 25 | . . . . . . 3 . 3 10 . 2 . 1 1 . 5 . . . Spaces Dug 23 | . . . . 4 . . 2 4 8 . . . . . . . 3 2 . Terrain Destroyed 619 | . . . . 4 . . 32 10 10 . 14 56 40 29 40 107 16 2 259 Melee 9 | . . . . 4 . . . . . . . . . . . . 3 2 . Projectile 79 | . . . . . . . 8 10 10 . 14 4 . . . 12 13 . 8 AOE 497 | . . . . . . . 24 . . . . 52 39 29 40 95 . . 218 Terrain Rammed . | . . . . . . . . . . . . . . . . . . . . Walls Destroyed . | . . . . . . . . . . . . . . . . . . . . Machines Disabled . | . . . . . . . . . . . . . . . . . . . . Actions | -11 -10 -9 -8 -8 -8 -8 -6 -6 -6 -6 -5 -5 -5 -5 -5 -4 -4 -3 -3 --------- Run | Yrd Mat Mat Mat Sto Rec Scr Fac Low Low Dat Pro Fac Upp Upp War Pro Fac Res Tes Total 10789 | 63 818 792 52 1217 250 1283 557 782 468 89 389 558 295 296 1160 590 407 147 576 Wait 622 | . 6 42 . 48 3 . 22 51 12 9 4 113 10 2 214 57 3 16 10 Move 9093 | 55 717 645 50 980 227 1250 473 707 438 80 350 400 268 246 882 430 353 126 416 Hop . | . . . . . . . . . . . . . . . . . . . . Pick Up 158 | 2 24 16 1 17 . 14 11 3 2 . 3 6 1 6 22 10 1 . 19 Fast Attach 104 | 6 7 10 . 16 1 . 2 . 1 . . 1 2 7 10 12 9 . 20 Attach 67 | . 2 4 . 9 . 1 4 . . . 1 4 2 8 6 17 . . 9 Detach 18 | . . . . . . . . . . . . . 1 1 5 7 1 . 3 Swap 41 | . 4 8 . 13 1 1 3 . . . 1 5 . . . 2 . . 3 Drop 150 | . 7 18 1 25 . 17 10 3 4 . 3 4 4 2 16 6 6 . 24 Fire 450 | . 50 49 . 82 17 . 32 15 11 . 22 24 7 19 5 49 16 . 52 Melee 48 | . . . . 8 . . . . . . . . . 2 . . 14 4 20 Ram 2 | . . . . . . . . . . . . 1 . . . . . 1 . Kick . | . . . . . . . . . . . . . . . . . . . . Crush 5 | . 1 . . . 1 . . . . . . . . 3 . . . . . Escape Stasis 2 | . . . . 2 . . . . . . . . . . . . . . . Rewire 11 | . . . . . . . . 2 . . 5 . . . . . 4 . . Trap . | . . . . . . . . . . . . . . . . . . . . Miscellaneous 18 | . . . . 17 . . . 1 . . . . . . . . . . . Route ------- -11/Scrapyard -10/Materials (discovered 4 exits: *Mat x3 / [*Min]) -9/Materials (discovered 3 exits: *Mat x3) -8/Materials (discovered 2 exits: *Sto x2) -8/Storage (discovered 2 exits: Fac / *Rec) -8/Recycling (discovered 2 exits: Fac / *Scr) -8/Scraptown (discovered 2 exits: *Fac x2) -6/Factory (discovered 2 exits: *Fac / *Low) -6/Lower Caves -6/Lower Caves -6/Data Miner -5/Proximity Caves -5/Factory (discovered 2 exits: *Upp x2) -5/Upper Caves -5/Upper Caves -5/Warlord -4/Proximity Caves -4/Factory -3/Research -3/Testing History --------- Turn | Location | Event 9 | -11/Scrapyard | Discovered new exit (range 15) 98 | -11/Scrapyard | Entered Materials 309 | -10/Materials | Build established: Mutant 358 | -10/Materials | Discovered new exit (range 9) 669 | -10/Materials | Discovered new exit (range 9) 1067 | -10/Materials | Discovered new exit (range 4) 1146 | -10/Materials | Discovered new exit (range 13) 1689 | -10/Materials | Entered another Materials area 1689 | -9/Materials | Evolved 2 slots: Propulsion x1, Utility x1 1896 | -9/Materials | Lost 3 parts (1u2w) 2058 | -9/Materials | Discovered new exit (range 10) 2604 | -9/Materials | Identified exit to Materials 2772 | -9/Materials | Learned location of Mines (-9) 3162 | -9/Materials | Entered another Materials area 3162 | -8/Materials | Evolved 2 slots: Propulsion x1, Utility x1 3162 | -8/Materials | Discovered new exit (range 15) 3163 | -8/Materials | Identified exit to Storage 3284 | -8/Materials | Entered Storage 3285 | -8/Storage | Identified exit to Recycling 3620 | -8/Storage | Garrison activated, responded to threat 4085 | -8/Storage | Lost 3 parts (1n2w) 4094 | -8/Storage | Build established: Scavenger-Mutant 4260 | -8/Storage | Garrison activated, responded to threat 4650 | -8/Storage | Build established: Mutant 4780 | -8/Storage | Learned 12 Factory zone layouts 4811 | -8/Storage | Loaded intel: 16 terminal locations 4830 | -8/Storage | Learned 4 Recycling zone layouts 4839 | -8/Storage | Loaded intel: 12 trap records 4840 | -8/Storage | Learned location of 1 exit from Extension 4841 | -8/Storage | Learned location of Extension (-4) 4842 | -8/Storage | Identified exit to Factory 5571 | -8/Storage | Assisted by bots powering up and referring to "LRC-V3" 5871 | -8/Storage | Build established: Commander-Mutant 6094 | -8/Storage | Entered Recycling 6094 | -8/Recycling | Accompanied by 9 allies 6095 | -8/Recycling | Identified exit to Factory 6634 | -8/Recycling | Scanned before Scraplab entrance 6670 | -8/Recycling | Entered Scraplab 6689 | -8/Recycling | Discovered new exit (range 3) 6696 | -8/Recycling | Entered Scraptown 6696 | -8/Scraptown | Accompanied by 9 allies 6696 | -8/Scraptown | System corruption cleaned by C-Scrubber 6936 | -8/Scraptown | Visited UFD Registry 6936 | -8/Scraptown | Registered with UFD as "Novafunk" 6989 | -8/Scraptown | Visited Science Guys 7089 | -8/Scraptown | Visited Chapter 10 7122 | -8/Scraptown | Visited Infowarlord's Domain 7154 | -8/Scraptown | Visited LU-1G1's Boring Crew 7188 | -8/Scraptown | Visited Derelict Rescue Squad 7224 | -8/Scraptown | Visited Scrap Suit Storage 7260 | -8/Scraptown | Visited Research Penetration Think Tank 7299 | -8/Scraptown | Visited Curators Association 7345 | -8/Scraptown | Visited Modified Component R&D 7454 | -8/Scraptown | Visited DA-N13 Charitable Foundation 7960 | -8/Scraptown | Found DCF Scrap (31 items) 8559 | -8/Scraptown | Visited Cave Peace 8616 | -8/Scraptown | Visited Scrapoid Research Area 8633 | -8/Scraptown | Visited Comm Corps 8682 | -8/Scraptown | Visited CR-KLE's Repair Center 8689 | -8/Scraptown | Heard Great Nut preacher, LISTEN AND RECITE! 8724 | -8/Scraptown | Visited Symbiants 9114 | -8/Scraptown | Found Unknown Device 9406 | -8/Scraptown | Found Spectral Analyzer 9760 | -8/Scraptown | Entered Factory 9760 | -6/Factory | Accompanied by 9 allies 9760 | -6/Factory | Evolved 4 slots: Utility x3, Weapon x1 9761 | -6/Factory | Identified exit to Lower Caves 9821 | -6/Factory | Identified Scrap Suit 10090 | -6/Factory | Build established: Commander-Gunner 10274 | -6/Factory | Discovered new exit (range 9) 10461 | -6/Factory | Scrapoids reinforcements arrived? 10477 | -6/Factory | Entered Lower Caves 10477 | -6/Lower Caves | Accompanied by 4 allies 10479 | -6/Lower Caves | Attracted the attention of an 0b10 checkpoint 10488 | -6/Lower Caves | Activated DRS Beacon 10565 | -6/Lower Caves | Build established: Commander-Scrapper 10570 | -6/Lower Caves | Encountered a Warlord checkpoint 10846 | -6/Lower Caves | Identified exit to Lower Caves 11022 | -6/Lower Caves | Learned Factory trap positions 11417 | -6/Lower Caves | Entered another Lower Caves area 11417 | -6/Lower Caves | Accompanied by 6 allies 11533 | -6/Lower Caves | Learned Factory terminal intel 11588 | -6/Lower Caves | Encountered a Warlord checkpoint 11959 | -6/Lower Caves | Discovered new exit (range 14) 11982 | -6/Lower Caves | Entered Data Miner 11982 | -6/Data Miner | Accompanied by 5 allies 11982 | -6/Data Miner | Discovered new exit (range 8) 12006 | -6/Data Miner | Met Data Miner 12028 | -6/Data Miner | Learned location of Section 7 (-2) 12028 | -6/Data Miner | Acquired the access code to Warlord's prototype stash 12048 | -6/Data Miner | Received God Mode back door access code from Data Miner 12087 | -6/Data Miner | Entered Proximity Caves 12087 | -5/Proximity Caves | Accompanied by 5 allies 12108 | -5/Proximity Caves | Learned Factory terminal intel 12129 | -5/Proximity Caves | Found DCF Scrap (11 items) 12182 | -5/Proximity Caves | Attracted the attention of an 0b10 outpost 12377 | -5/Proximity Caves | Spotted B-75 Beast 12386 | -5/Proximity Caves | Allies destroyed B-75 Beast 12563 | -5/Proximity Caves | Discovered new exit (range 5) 12576 | -5/Proximity Caves | Entered Factory 12576 | -5/Factory | Accompanied by 3 allies 12576 | -5/Factory | Evolved 2 slots: Utility x2 12577 | -5/Factory | Loaded intel: 89 trap records 12578 | -5/Factory | Loaded intel: 25 terminal locations 12703 | -5/Factory | Scrapoid reinforcements arrived 12876 | -5/Factory | First assault squad dispatched 13014 | -5/Factory | Fabricated Combat Drone Bay? 13098 | -5/Factory | Build established: Commander-Gunner 13115 | -5/Factory | Scrapoid reinforcements arrived 13149 | -5/Factory | Lost 7 allies 13187 | -5/Factory | Identified exit to Upper Caves 13197 | -5/Factory | Spotted B-75 Beast 13227 | -5/Factory | Entered Upper Caves 13248 | -5/Upper Caves | Identified exit to Upper Caves 13287 | -5/Upper Caves | Spotted B-75 Beast 13419 | -5/Upper Caves | Lost 3 parts (2u1w) 13426 | -5/Upper Caves | Build established: Scrapper 13488 | -5/Upper Caves | Attracted the attention of an 0b10 checkpoint 13521 | -5/Upper Caves | Entered another Upper Caves area 13535 | -5/Upper Caves | Lost 5 parts (1p2u2w) 13750 | -5/Upper Caves | Lost 3 parts (1u2w) 13913 | -5/Upper Caves | Released all parts (10) 13925 | -5/Upper Caves | Core integrity fell below 50% 13960 | -5/Upper Caves | Discovered new exit (range 5) 13986 | -5/Upper Caves | Entered Warlord 14009 | -5/Warlord | System corruption cleaned by Quarantine Array 14213 | -5/Warlord | Build established: Mutant 14249 | -5/Warlord | Warlord's base attacked by MAIN.C 14460 | -5/Warlord | Found Prototype Launcher 14464 | -5/Warlord | Found Prototype Energy Cannon 14599 | -5/Warlord | Warlord forces counterattacked 14602 | -5/Warlord | Rebuked by Warlord 14618 | -5/Warlord | Identified Vortex Cannon 14642 | -5/Warlord | Found Prototype Processor 14642 | -5/Warlord | Identified Exp. Targeting Computer 14653 | -5/Warlord | Found Spectral Analyzer 14657 | -5/Warlord | Found Prototype Device 14657 | -5/Warlord | Identified Exp. Focal Shield 14693 | -5/Warlord | Found Prototype Reactor 14924 | -5/Warlord | Warlord base infiltrated, sounded retreat 14925 | -5/Warlord | Enhanced Grunt warped into view 14925 | -5/Warlord | Enhanced Grunt warped into view 14925 | -5/Warlord | Enhanced Grunt warped into view 14925 | -5/Warlord | Enhanced Demolisher warped into view 14925 | -5/Warlord | Enhanced Demolisher warped into view 14925 | -5/Warlord | Enhanced Demolisher warped into view 15004 | -5/Warlord | Spotted Striker 15026 | -5/Warlord | Found Prototype Ballistic Cannon 15043 | -5/Warlord | Lost 4 allies 15060 | -5/Warlord | Spotted B-75 Beast 15063 | -5/Warlord | Build established: Derelict-Mutant 15069 | -5/Warlord | Identified Vortex Catalyst Activator 15071 | -5/Warlord | Spotted B-86 Titan 15076 | -5/Warlord | Destroyed B-75 Beast 15149 | -5/Warlord | Spotted Striker 15149 | -5/Warlord | Spotted Executioner 15151 | -5/Warlord | Discovered new exit (range 16) 15175 | -5/Warlord | Entered Proximity Caves 15176 | -4/Proximity Caves | Identified Hvy. Autocannon 15190 | -4/Proximity Caves | Lost 3 allies 15267 | -4/Proximity Caves | Spotted B-86 Titan 15404 | -4/Proximity Caves | Destroyed B-86 Titan 15448 | -4/Proximity Caves | System corruption reached 10% 15468 | -4/Proximity Caves | Build established: Mutant 15613 | -4/Proximity Caves | Core integrity fell below 20% 15657 | -4/Proximity Caves | Lost 7 parts (2p1n3u1w) 15709 | -4/Proximity Caves | Lost 4 parts (2u2w) 15959 | -4/Proximity Caves | Learned Research terminal intel 15996 | -4/Proximity Caves | Discovered new exit (range 22) 16006 | -4/Proximity Caves | Learned Research stockpile data 16030 | -4/Proximity Caves | Entered Factory 16030 | -4/Factory | Evolved 2 slots: Propulsion x2 16031 | -4/Factory | Loaded intel: 27 terminal locations 16101 | -4/Factory | Spotted B-86 Titan 16134 | -4/Factory | Build established: Scavenger-Mutant 16273 | -4/Factory | Destroyed 8 combat bots 16275 | -4/Factory | Discovered new exit (range 11) 16304 | -4/Factory | Entered Research 16304 | -3/Research | Evolved 2 slots: Power x1, Propulsion x1 16306 | -3/Research | Loaded intel: 21 terminal locations 16361 | -3/Research | Discovered new exit (range 23) 16392 | -3/Research | Entered Testing 16403 | -3/Testing | Found Prototype Energy Cannon 16403 | -3/Testing | Identified Potential Cannon 16406 | -3/Testing | Found Prototype Energy Cannon 16406 | -3/Testing | Identified Imp. Potential Cannon 16605 | -3/Testing | Identified Vortex Chain Reactor 16687 | -3/Testing | Spotted Striker 16689 | -3/Testing | Spotted Striker 16707 | -3/Testing | Destroyed Striker 16707 | -3/Testing | Destroyed Striker 16731 | -3/Testing | Found Prototype Ballistic Cannon 16731 | -3/Testing | Identified Perforator 16738 | -3/Testing | Found Prototype Device 16738 | -3/Testing | Identified Adv. EM Disruption Field 16749 | -3/Testing | Spotted Alpha 7 16775 | -3/Testing | Found Prototype Energy Cannon 16775 | -3/Testing | Identified Cld. Nova Cannon 16797 | -3/Testing | Scanned by Researcher 16872 | -3/Testing | Lost 5 parts (1p2n1u1w) 16892 | -3/Testing | First assault squad dispatched 16949 | -3/Testing | Found Prototype Hackware 17102 | -3/Testing | Self-destructed Last Messages --------------- 17093_ Critical hit (Destroy). 17093_ Myomer Leg destroyed. 17093_ Penetrated by Slug. 17093_ Hpw. Tractor Beam destroyed. 17094_ Earth collapses. 17094_ Slug penetrates Wall. 17096_ K-01 Serf collects debris. 17098_ Penetrated by Slug. 17099_ Destroyed Lgt. Antimatter Reactor. 17099_ Destroyed Imp. Phase Shifter. 17099_ Slug penetrates Wall. 17099_ Penetrated by Slug. 17099_ Slug penetrates Wall. 17099_ Potential Cannon destroyed. 17100_ H-77 Assassin heat spikes uncontrollably. 17100_ H-77 Assassin heat damages Hpw. Shotgun. 17100_ K-01 Serf collects debris. 17101_ H-77 Assassin heat damages Coil Gun. 17101_ Penetrated by Slug. 17101_ Slug penetrates Wall. Map ----- +----------------------------------------------------+ | "" """ ?????#???????????????????????????????????? | | ""?"""?? "" ?#???#?##??"?????????????????????????? | | ""?""" G"?##?##??#?"""????????????????????????? | | ?? ?"" ?##?##?#??? ?????????????????????????? | | ? ?? ? ??####??????????????????????????????? | | ??###+###############???+#???????????????????????? | | ### #?#####?##?#?#?#?? ??????????????????????? | | ?## #? ? ? #### ????????????????????? | | ### #? ? ? #### ?? ???????????????????? | | #? ####? ? ????????????????????? | | # ##?# ? ?? ??????????????????? | | # ? +???? ???????????????? | | ### # ####" ###?##?????????????????? | | # #??#"T###?## ????????????????? | | # ##########??##???????????????? | | + """ """ ##### ####??## ?? ???????????? | | # """ """ ##### ###?# ?? ???????????? | | ### #? """ """ ##### #####? ?# ????????????? | | " # # ### ##? ?#????? ???????? | | # ############### * ###?#???????????????? | | + ######## [ ???? ? ????????? | | # #?###### = ## ??#?#???#???????? | | # ######## hh #?? ?###???????????? | | " # # % ## #?????#????????? | | ########## # ####?######?#???????? | | ########## # # @ ###?##?#?#?#?????????? | | #?##### # # "" ## ######?##?###?#????????? | | ##?### # + """##w#?###????? ? ??????????? | | ##### # # T"#; ### #?###? """ ?""""???? | | #####"" # # !!] """#; #"#"###### """? """"???? | | # # # ! "" "; ; ### """??""""???? | | # # # !! #;!#= #?? "S???""""???? | | # " # ##"##"""###[+ ###?""???""""???? | | # "" # ######## #[#=[ %= ##??""?? """"???? | | # "" + %% ####!# *[ ###??????""""???? | | # "" # % %!#! = ##? ??? """"???? | | # "" # !k/ ##?? ???? ??????? | | # "" # ###### * ##??????????????? | | # # ###### #"" =# ###? ? ?????????? | | #######""# # # # ### ?? ???????? | | ######## " # "" ## # " ########????????? | | ######## " + """ "" #### """ ####????????????? | | ######## " # """ "" #### ###?????????????? | | ####### # " """ S #############?#???????????? | | ######## " " """ "" #######?######????????????? | | ######## " "" """ "" #############?#???????????? | | ######## " "# "" ############??#?#?????????? | | ######### " "# ###############???????????? | | ######### #]!###################?##?#?#??????????? | | ###########= ####### ##?????#????????? | +----------------------------------------------------+ Best States ------------- Heat Dissipation 136 Energy Generation 55 Energy Capacity 1600 Matter Stores 300 Matter Capacity 300 Sight Range 24 Terrain Scan Range 24 Terrain Scan Density 210 Armor Coverage 305 Resistance: KI 30 Resistance: EM 20 Propulsion Shielding 66 Utility Shielding 66 Evasion (%) 65 Targeting Accuracy 12 Core Analysis 6 Recoil Reduction 4 Offensive Hacking 12 Defensive Hacking 10 Item Schematics ----------------- Hacking Suite | -6/Factory | Hacked Combat Drone Bay | -6/Data Miner | Free Lgt. Regenerative Plating | -6/Data Miner | Free Enh. Armored Leg | -6/Data Miner | Free Imp. Matter Compressor | -6/Data Miner | Free Hvy. Gatling Laser | -6/Data Miner | Free Imp. Phase Shifter | -6/Data Miner | Free Imp. Heavy Treads | -6/Data Miner | Free Hyp. Mass Driver | -6/Data Miner | Free Impulse Thruster Array | -6/Data Miner | Free Myomer Leg | -6/Data Miner | Free Adv. Remote Datajack | -6/Data Miner | Free Robot Schematics ------------------ Y-64 Sentinel | -6/Data Miner | Free A-15 Conveyor | -6/Data Miner | Free H-66 Slayer | -6/Data Miner | Free W-44 Eye | -6/Data Miner | Free Fabricated ------------ Combat Drone Bay | x1 | -5/Factory Alien Tech Used ----------------- None Achievements -------------- None Challenges ------------ None Game ------ Seed SystemPortableSink Manual? 0 Play Time 01:45:55 Cumulative 220.4 hours Start 2024.08.03 @ 22:03:14 End 2024.08.04 @ 00:21:20 Sessions 2 Manual Loads 0 Difficulty Rogue Special Mode None Game No. 227 Rogue 191 Adventurer 36 Explorer 0 Win Type - Total 10 Types 3/0/7/0/0/0/0/0/0 Lore% 58 Gallery% 80 Achievement% 71 Wizard Run 0 Options --------- Layout 0 ASCII 0 Keyboard 0 Movement Mouse Keybinds 0 Fullscreen 1 Font 18/SmallcapsGlow Map View 76x50 Zoom Use 0% Tactical HUD 1 Map Filters NONE Filters NONE Steam 1 RUN: 264796c8-aea7-4161-94fd-b121893b3aeb